Cogmind - Beta 14 @@@ ROGUE MODE // 2025.05.04 @ 10:40:52 Player: Epsilon 11 Result: Destroyed by P-60 Hacker with Shock Rifle Performance ------------- Evolutions (2) 1000 Regions Visited (6) 1200 Robots Destroyed (38) 190 Value Destroyed (1456) 1456 Prototype IDs (25) 500 Alien Tech Used (0) 0 Bonus (528) 528 TOTAL SCORE: 4874 Bonus ------- High Alert Combat Kills 28 Entered Garrisons 200 Aligned with FarCom 300 Cogmind --------- Core Integrity 0/550 Matter 202/300 Energy 82/100 System Corruption 10% Temperature Cool (9) Movement Core (350) Ox6 Location -8/Garrison Parts ------- > --- POWER (1) -------- (None) > --- PROPULSION (2) --- (None) > --- UTILITY (5) ------ Medium Storage Unit > --- WEAPON (3) ------- Latent Energy Streamer > --- INVENTORY (10) --- Improved Ion Engine Aluminum Leg Experimental Sensor Array Peak State ------------ > --- POWER ------------ Light Nuclear Core > --- PROPULSION ------- Compact Wheel Compact Wheel > --- UTILITY ---------- Improved Heat Sink Medium Storage Unit Sensor Array Improved Terrain Scanner Insulated Plating > --- WEAPON ----------- Precision Beam Rifle EM Pulse Cannon EM Pulse Cannon > --- INVENTORY -------- Ion Engine Improved Ion Engine Titanium Leg Experimental Sensor Array Seismic Detector Melee Analysis Suite Latent Energy Streamer Rocket Launcher Flail [Rating: 29] Favorites ----------- Power Ion Engine Engine Ion Engine Power Core Light Nuclear Core Propulsion Compact Wheel Leg Titanium Leg Wheel Compact Wheel Utility Medium Storage Unit Device Sensor Array Storage Medium Storage Unit Processor Melee Analysis Suite Protection Insulated Plating Weapon Assault Rifle Energy Gun Precision Beam Rifle Energy Cannon EM Pulse Cannon Ballistic Gun Assault Rifle Launcher Missile Launcher Special Weapon Mining Laser Impact Weapon Flail Build | -11 -10 -10 -10 -9 -8 -8 ------- Run | Yrd Mat Min Exi Min Mat Gar Slots Evolved 4 | . . . . . 4 . Power . | . . . . . . . Propulsion . | . . . . . . . Utility 3 | . . . . . 3 . Weapon 1 | . . . . . 1 . Parts Attached 52 | 6 1 1 1 5 20 18 Power 8 | 1 1 . . 1 3 2 Engine 6 | 1 1 . . 1 2 1 Core 2 | . . . . . 1 1 Reactor . | . . . . . . . Propulsion 6 | 2 . . . . . 4 Treads . | . . . . . . . Leg 4 | . . . . . . 4 Wheel 2 | 2 . . . . . . Hover . | . . . . . . . Flight . | . . . . . . . Utility 15 | 1 . 1 1 . 5 7 Device 6 | . . 1 . . 3 2 Storage 3 | 1 . . 1 . 1 . Processor 1 | . . . . . . 1 Hackware . | . . . . . . . Protection 5 | . . . . . 1 4 Artifact . | . . . . . . . Weapon 23 | 2 . . . 4 12 5 Energy Gun 2 | . . . . . 2 . Energy Cannon 3 | . . . . . 2 1 Ballistic Gun 10 | 2 . . . 2 4 2 Ballistic Cannon . | . . . . . . . Launcher 2 | . . . . . . 2 Special Weapon 4 | . . . . 2 2 . Impact Weapon 2 | . . . . . 2 . Slashing Weapon . | . . . . . . . Piercing Weapon . | . . . . . . . Special Melee Weapon . | . . . . . . . Unidentified Prototypes 1 | . . . . . 1 . Corrupted Parts 1 | . . . . . . 1 System Corruption 6 | . . . . . . 6 Parts Lost 28 | . . . . . 6 22 Power 5 | . . . . . 2 3 Propulsion 5 | . . . . . . 5 Utility 10 | . . . . . 2 8 Weapon 8 | . . . . . 2 6 Highest Loss Streak 13 | . . . . . 3 13 To Critical Strikes 1 | . . . . . . 1 Average Slot Usage (%) 91 | . 85 100 100 100 93 77 Engine 8 | . 14 14 14 14 5 5 Core 2 | . . . . . 3 2 Leg 1 | . . . . . . 6 Wheel 19 | . 28 28 28 28 18 8 Device 17 | . . 14 14 14 23 15 Storage 12 | . 14 14 14 14 12 9 Protection 3 | . . . . . 5 6 Energy Gun 2 | . . . . . 2 8 Energy Cannon 2 | . . . . . 6 . Ballistic Gun 14 | . 28 28 28 21 11 2 Special Weapon 1 | . . . . 6 2 . Impact Weapon 2 | . . . . . 3 6 Peak Build Rating 29 | 6 6 7 8 11 29 25 Average Rating 15 | 4 6 7 7 9 20 19 On Entrance 7 | . 6 6 7 8 11 17 Naked Turns . | . . . . . . . Heaviest Build 37 | 11 13 14 19 21 37 30 Greatest Support 32 | 32 32 32 32 32 32 32 Greatest Overweight (x) 4 | . . . . . 1 4 Average Overweight (x) . | . . . . . . . Largest Inventory Capacity 10 | 8 8 8 10 10 10 10 Average Capacity 9 | 7 8 8 9 10 10 10 Most Carried 10 | 4 6 5 7 10 10 7 Average Carried 6 | 1 4 4 5 8 8 5 Final Capacity 10 | 8 8 8 10 10 10 10 Final Carried 10 | 4 5 5 7 10 7 3 Class Distribution -------------------- 39% | Mutant 24% | Skirmisher 23% | Assassin 5% | Scavenger-Assassin 3% | Scavenger-Mutant Dominant Class ---------------- Mutant | -10/Materials Mutant | -10/Mines Mutant | -10/Exiles Mutant | -9/Mines Skirmisher | -8/Materials Assassin | -8/Garrison Resources | -11 -10 -10 -10 -9 -8 -8 ----------- Run | Yrd Mat Min Exi Min Mat Gar Matter Collected 844 | 284 30 . . 96 229 205 Remotely . | . . . . . . . Salvage Created 1390 | 92 79 . . 121 485 613 Parts 59 | 7 3 . . 6 19 24 Haulers Intercepted 1 | . . . . . 1 . Recyclers Shooed 1 | . . . . . 1 . Parts Field Recycled . | . . . . . . . Retrieved Matter . | . . . . . . . Parts Self-Destructed . | . . . . . . . Prevented . | . . . . . . . Kills | -11 -10 -10 -10 -9 -8 -8 ------- Run | Yrd Mat Min Exi Min Mat Gar Combat Hostiles Destroyed 34 | . 2 . . 3 7 22 Guns 13 | . 2 . . 3 2 6 AOE 13 | . . . . . 1 12 Classes Destroyed 10 | 2 1 . . 1 3 3 Tunneler 1 | 1 . . . . . . Hauler 1 | . . . . . 1 . Recycler 2 | 1 . . . . 1 . Swarmer 4 | . . . . . . 4 Grunt 17 | . 2 . . 2 4 9 Brawler 1 | . . . . . . 1 Duelist 3 | . . . . 1 . 2 Sentry 3 | . . . . . 2 1 Specialist 3 | . . . . . . 3 Hunter 3 | . . . . . 1 2 Best Kill Streak 7 | 1 2 . . 2 3 7 Combat Bots Only 7 | . 2 . . 2 2 7 Max Kills in Single Turn 3 | 1 1 . . 1 2 3 Gunslinging . | . . . . . . . Exploded 2 | . . . . . 1 2 Melee . | . . . . . . . Uniques/NPCs Destroyed . | . . . . . . . Combat | -11 -10 -10 -10 -9 -8 -8 -------- Run | Yrd Mat Min Exi Min Mat Gar Hostile Shots Fired 220 | . 16 . . 6 54 144 Missed 50 | . 4 . . . 15 31 Damage Taken 2593 | . 110 . . 67 671 1745 Core 612 | . 47 . . 11 90 464 Absorbed by Shields 63 | . . . . . . 63 Redirected to Shielding 12 | . . . . . . 12 Core Remaining (%) 88 | 100 . . . 76 . . Volleys Fired 83 | 6 5 . . 13 23 36 Largest 3 | 2 2 . . 2 3 2 Hottest 187 | 40 40 . . 100 187 97 Shots Fired 134 | 12 10 . . 22 50 40 Gun 92 | 12 10 . . 18 27 25 Cannon 21 | . . . . . 21 . Launcher 15 | . . . . . . 15 Special 6 | . . . . 4 2 . Kinetic 65 | 12 10 . . 18 21 4 Thermal 33 | . . . . 4 8 21 Explosive 15 | . . . . . . 15 Electromagnetic 21 | . . . . . 21 . Robot Hit Streak 13 | 8 3 . . 8 13 10 Robot Miss Streak 3 | 2 1 . . 2 3 1 Penetration Max . | . . . . . . . Secondary Targets . | . . . . . . . Shots Hit Robots 103 | 9 6 . . 14 40 34 Core Hits 75 | 3 4 . . 7 16 45 Critical Kills 1 | . . . . . 1 . Critical Parts Destroyed 3 | . . . . . 2 1 Critical Strikes 5 | . . . . . 4 1 Destroy 1 | . . . . . 1 . Corrupt 1 | . . . . . 1 . Smash 3 | . . . . . 2 1 Melee Attacks 23 | . . . . . 8 15 Impact 23 | . . . . . 8 15 Slashing . | . . . . . . . Piercing . | . . . . . . . Sneak Attacks . | . . . . . . . Combat Hostiles . | . . . . . . . Follow-up Attacks . | . . . . . . . Damage Inflicted 3769 | 101 74 . . 163 796 2635 Guns 865 | 101 69 . . 163 245 287 Cannons 377 | . . . . . 377 . Explosions 2131 | . . . . . 87 2044 Melee 391 | . . . . . 87 304 Ramming 5 | . 5 . . . . . Kinetic 561 | 101 69 . . 163 195 33 Thermal 391 | . . . . . 137 254 Explosive 2044 | . . . . . . 2044 Electromagnetic 377 | . . . . . 377 . Impact 391 | . . . . . 87 304 Slashing . | . . . . . . . Piercing . | . . . . . . . Highest Corruption 10 | . . . . . 2 10 Average Corruption 3 | . . . . . 2 4 Corruption Purged . | . . . . . . . Corruption Blocked . | . . . . . . . Effects 17 | . . . . . . 17 Message Errors 4 | . . . . . . 4 Matter Fused 3 | . . . . . . 3 Energy Discharges 3 | . . . . . . 3 Parts Rejected 1 | . . . . . . 1 Parts Fused 1 | . . . . . . 1 Data Loss (minor) 2 | . . . . . . 2 Alerts 2 | . . . . . . 2 Weapon Failures 1 | . . . . . . 1 Overload Shots . | . . . . . . . Overflow Damage 141 | . . . . . 54 87 Projectiles 5 | . . . . . 5 . Explosions 20 | . . . . . . 20 Melee 116 | . . . . . 49 67 Knockbacks . | . . . . . . . Impact . | . . . . . . . Kinetic . | . . . . . . . Secondary . | . . . . . . . Self-Inflicted Damage 159 | . 2 . . . 36 121 Shots 6 | . . . . . 1 5 Rammed 1 | . 1 . . . . . Targets Rammed 1 | . 1 . . . . . Kicked . | . . . . . . . Crushed . | . . . . . . . Highest Temperature 180 | . 6 . . 53 180 69 Average Temperature 41 | . 6 . . 21 62 22 Received Heat Transfer 930 | . 30 . . 36 297 567 Siege Activations . | . . . . . . . Robots Corrupted 8 | . . . . . 4 4 Combat Hostiles 8 | . . . . . 4 4 Parts Fried 10 | . . . . . 5 5 Impact Corruptions 8 | . . . . . 3 5 Robots Melted . | . . . . . . . Combat Hostiles . | . . . . . . . Parts Melted . | . . . . . . . Heat Transferred 766 | . . . . . 211 555 Parts Sabotaged . | . . . . . . . Parts Stolen . | . . . . . . . Parts Stripped . | . . . . . . . Power Chain Reactions 1 | . . . . . 1 . Alert | -11 -10 -10 -10 -9 -8 -8 ------- Run | Yrd Mat Min Exi Min Mat Gar Peak Influence 486 | 10 116 45 . 74 85 486 Initial 45 | . 6 45 . . 28 . Average 65 | 4 37 45 . 46 27 164 Maximum Alert Level 2 | . . . . . . 2 Low Security (%) 91 | 100 100 100 . 100 100 63 Level 1 8 | . . . . . . 32 Level 2 . | . . . . . . 3 Level 3 . | . . . . . . . Level 4 . | . . . . . . . Level 5 . | . . . . . . . High Security . | . . . . . . . Max Security . | . . . . . . . Squads Dispatched 1 | . 1 . . . . . Investigation 1 | . 1 . . . . . Extermination . | . . . . . . . Reinforcement . | . . . . . . . Assault . | . . . . . . . Garrison . | . . . . . . . Intercept . | . . . . . . . Searches Triggered . | . . . . . . . Construction Impeded . | . . . . . . . Haulers Reinforced . | . . . . . . . Active Scanning Responses . | . . . . . . . Cargo Convoy Interrupts . | . . . . . . . Stealth | -11 -10 -10 -10 -9 -8 -8 --------- Run | Yrd Mat Min Exi Min Mat Gar Distress Signals 2 | . 1 . . . 1 . Communications Jammed . | . . . . . . . Distress Signals . | . . . . . . . Times Spotted 52 | . 7 . . 3 13 29 Peak Tracking Total 11 | . 7 . . 1 4 11 Tactical Retreats 2 | . . . . . 1 1 Traps | -11 -10 -10 -10 -9 -8 -8 ------- Run | Yrd Mat Min Exi Min Mat Gar Traps Triggered 6 | . . . . . . 6 Indirectly . | . . . . . . . Trap Hack Attempts . | . . . . . . . Triggered . | . . . . . . . Disarmed . | . . . . . . . Reprogrammed . | . . . . . . . Reused . | . . . . . . . Traps Extracted . | . . . . . . . Installed . | . . . . . . . Triggered . | . . . . . . . Machines | -11 -10 -10 -10 -9 -8 -8 ---------- Run | Yrd Mat Min Exi Min Mat Gar Machines Disabled . | . . . . . . . Max in Single Turn . | . . . . . . . Machines Repaired . | . . . . . . . Machines Dismantled . | . . . . . . . Machines Sabotaged . | . . . . . . . Overloaded Fab Kills . | . . . . . . . Hacking | -11 -10 -10 -10 -9 -8 -8 --------- Run | Yrd Mat Min Exi Min Mat Gar Machines Accessed 11 | . 4 . 2 . 4 1 Terminals 6 | . 3 . . . 2 1 Fabricators . | . . . . . . . Repair Stations . | . . . . . . . Recycling Units 1 | . 1 . . . . . Scanalyzers 1 | . . . . . 1 . Garrison Access 1 | . . . . . 1 . Total Hacks 39 | . 15 . 11 . 11 2 Successful 24 | . 8 . 11 . 5 . Failed 15 | . 7 . . . 6 2 Catastrophic 2 | . 1 . . . 1 . Database Lockouts . | . . . . . . . Manual 22 | . 15 . 1 . 6 . Terminals 22 | . 14 . . . 6 2 Fabricators . | . . . . . . . Repair Stations . | . . . . . . . Recycling Units 1 | . 1 . . . . . Scanalyzers 4 | . . . . . 4 . Garrison Access 1 | . . . . . 1 . Terminal Hacks 13 | . 2 . 11 . . . Record 10 | . . . 10 . . . Robot Analysis 1 | . 1 . . . . . Terminal Index 1 | . 1 . . . . . Derelict Proto ID Bank 1 | . . . 1 . . . Fabricator Hacks . | . . . . . . . Repair Station Hacks . | . . . . . . . Recycling Unit Hacks . | . . . . . . . Scanalyzer 3 | . . . . . 3 . Insert Component 2 | . . . . . 2 . Analyze 1 | . . . . . 1 . Garrison Access Hacks 1 | . . . . . 1 . Unlock Access 1 | . . . . . 1 . Unauthorized Hacks 7 | . 6 . . . 1 . Terminals 6 | . 5 . . . 1 . Assimilate 1 | . 1 . . . . . Botnet 4 | . 3 . . . 1 . Operators 1 | . 1 . . . . . Fabricators . | . . . . . . . Repair Stations . | . . . . . . . Recycling Units 1 | . 1 . . . . . Tunnel 1 | . 1 . . . . . Scanalyzers . | . . . . . . . Garrison Access . | . . . . . . . Data Cores Recovered . | . . . . . . . Used . | . . . . . . . Hacking Detections 8 | . 3 . . . 4 1 Full Trace Events . | . . . . . . . Feedback Events . | . . . . . . . Feedback Blocked . | . . . . . . . Robot Schematics Acquired . | . . . . . . . Robots Built . | . . . . . . . Authchips . | . . . . . . . Time . | . . . . . . . Total Robot Build Rating . | . . . . . . . Part Schematics Acquired 1 | . . . . . 1 . Parts Built . | . . . . . . . Authchips . | . . . . . . . Time . | . . . . . . . Total Part Build Rating . | . . . . . . . Parts Repaired . | . . . . . . . Time . | . . . . . . . Parts Recycled . | . . . . . . . Recycled Matter . | . . . . . . . Retrieved Matter . | . . . . . . . Retrieved Components . | . . . . . . . Parts Scanalyzed 1 | . . . . . 1 . Part Schematics Acquired 1 | . . . . . 1 . Parts Damaged . | . . . . . . . Bothacking | -11 -10 -10 -10 -9 -8 -8 ------------ Run | Yrd Mat Min Exi Min Mat Gar Used RIF Installer . | . . . . . . . Robots Hacked . | . . . . . . . Non-combat . | . . . . . . . Combat . | . . . . . . . Robot Hacks Applied . | . . . . . . . Relay Couplers Released . | . . . . . . . Fabnet Peak Effective % . | . . . . . . . Robots Rewired . | . . . . . . . Allies Hacked . | . . . . . . . Hacks Repelled . | . . . . . . . Allies | -11 -10 -10 -10 -9 -8 -8 -------- Run | Yrd Mat Min Exi Min Mat Gar Total Allies 1 | . 1 . . . . . Largest Group 1 | . 1 1 1 1 1 . Highest-Rated Group 10 | . 10 10 10 10 10 . Highest-Rated Ally 10 | . 10 10 10 10 10 . Total Orders 14 | . . . . 4 10 . STAY 7 | . . . . 2 5 . FOLLOW 7 | . . . . 2 5 . Ally Attacks . | . . . . . . . Total Damage . | . . . . . . . Kills . | . . . . . . . Allies Corrupted . | . . . . . . . Allies Melted . | . . . . . . . Intel | -11 -10 -10 -10 -9 -8 -8 ------- Run | Yrd Mat Min Exi Min Mat Gar Robot Analysis Total 1 | . 1 . . . . . Derelict Logs Recovered 3 | . . 1 . 2 . . Drone Launches . | . . . . . . . Drone Recoveries . | . . . . . . . Exploration | -11 -10 -10 -10 -9 -8 -8 ------------- Run | Yrd Mat Min Exi Min Mat Gar Turns Passed 3242 | 77 115 167 470 397 1327 689 Spaces Moved 2056 | 49 85 166 466 305 560 425 Core 4 | 2 . . . . . 2 Treads . | . . . . . . . Legs 133 | . . . . . . 133 Wheels 1919 | 47 85 166 466 305 560 290 Hover . | . . . . . . . Flight . | . . . . . . . Fastest Speed 50 | 50 100 100 100 100 100 100 Average Speed 103 | 97 100 100 100 100 104 113 Slowest Speed 250 | 100 100 100 100 100 115 250 Overloaded Moves . | . . . . . . . Propulsion Burnouts . | . . . . . . . Robots Hopped . | . . . . . . . Cave-ins Triggered . | . . . . . . . Exploration Rate (%) 40 | 4 24 42 80 66 33 35 Regions Visited 6 Branch Regions 3 Pre-discovered Areas 2 | . 1 . 1 . . . Known Exits Taken 1 | . . . . . 1 . Unknown Exits Taken 5 | 1 1 1 1 1 . . Scrap Searched 1 | . . . . 1 . . Spaces Dug 11 | . . . . 4 3 4 Terrain Destroyed 128 | . . . . 4 12 112 Melee 5 | . . . . . 1 4 Projectile 6 | . . . . 4 2 . AOE 117 | . . . . . 9 108 Terrain Rammed . | . . . . . . . Walls Destroyed . | . . . . . . . Machines Disabled . | . . . . . . . Actions | -11 -10 -10 -10 -9 -8 -8 --------- Run | Yrd Mat Min Exi Min Mat Gar Total 2976 | 64 105 167 469 366 1245 560 Wait 697 | . 12 . 2 42 620 21 Move 2051 | 48 85 165 465 304 559 425 Hop . | . . . . . . . Pick Up 20 | 4 1 1 1 2 7 4 Fast Attach 18 | 6 . . . . 4 8 Attach 17 | . . 1 . . 7 9 Detach . | . . . . . . . Swap 17 | . 1 . 1 5 9 1 Drop 9 | . 1 . . . 8 . Fire 83 | 6 5 . . 13 23 36 Melee 23 | . . . . . 8 15 Ram . | . . . . . . . Kick . | . . . . . . . Crush . | . . . . . . . Escape Stasis 41 | . . . . . . 41 Rewire . | . . . . . . . Trap . | . . . . . . . Miscellaneous . | . . . . . . . Route ------- -11/Scrapyard -10/Materials -10/Mines -10/Exiles (discovered 2 exits: [*Min x2]) -9/Mines -8/Materials (discovered 2 exits: Fac / Gar) -8/Garrison History --------- Turn | Location | Event 15 | -11/Scrapyard | Discovered new exit (range 16) 78 | -11/Scrapyard | Entered Materials 176 | -10/Materials | Discovered new exit (range 16) 193 | -10/Materials | Entered Mines 193 | -10/Mines | Accompanied by 1 ally 200 | -10/Mines | Received a Rocket Launcher from a helpful Derelict 309 | -10/Mines | Build established: Mutant 348 | -10/Mines | Assembled infested the area 351 | -10/Mines | Learned location of 1 exit from Materials 356 | -10/Mines | Deemed a non-threat by the Exiles lab entrance 356 | -10/Mines | Discovered new exit (range 5) 360 | -10/Mines | Entered Exiles 360 | -10/Exiles | Accompanied by 1 ally 374 | -10/Exiles | Discovered new exit (range 15) 406 | -10/Exiles | Met 8R-AWN 422 | -10/Exiles | Met EX-HEX 481 | -10/Exiles | Met EX-DEC 502 | -10/Exiles | Visited The Gauntlet 550 | -10/Exiles | Learned location of Zion (-6) 593 | -10/Exiles | Discovered new exit (range 12) 657 | -10/Exiles | Met EX-BIN 677 | -10/Exiles | Aligned with FarCom system 678 | -10/Exiles | Given EX-Vault access code 724 | -10/Exiles | Opened EX-Vault 731 | -10/Exiles | Found Latent Energy Streamer 754 | -10/Exiles | Warned to stay clear of 0b10 Research branches 830 | -10/Exiles | Left Exiles lab with Latent Energy Streamer 830 | -10/Exiles | Entered Mines 830 | -9/Mines | Accompanied by 1 ally 855 | -9/Mines | Found a damaged Exp. Sensor Array with a note attached 893 | -9/Mines | Found Prototype Device 897 | -9/Mines | Learned location of 1 exit from Lower Caves 1214 | -9/Mines | Discovered new exit (range 8) 1221 | -9/Mines | YI-UF0 nonchalantly dropped a Grenade Launcher on the ground 1227 | -9/Mines | Entered Materials 1227 | -8/Materials | Accompanied by 1 ally 1227 | -8/Materials | Evolved 4 slots: Utility x3, Weapon x1 1228 | -8/Materials | Identified exit to Factory 1515 | -8/Materials | Build established: Skirmisher 2206 | -8/Materials | Identified Exp. Sensor Array 2293 | -8/Materials | Lost 3 parts (1p2w) 2365 | -8/Materials | Build established: Assassin 2483 | -8/Materials | Identified exit to Garrison 2554 | -8/Materials | Entered Garrison 2652 | -8/Garrison | Triggered checkpoint 2738 | -8/Garrison | Triggered checkpoint 3024 | -8/Garrison | Lost 3 parts (1p1n1u) 3056 | -8/Garrison | Triggered checkpoint 3059 | -8/Garrison | Destroyed 7 combat bots 3067 | -8/Garrison | Lost 3 parts (1u2w) 3229 | -8/Garrison | Core integrity fell below 50% 3238 | -8/Garrison | System corruption reached 10% 3239 | -8/Garrison | Core integrity fell below 20% 3243 | -8/Garrison | Destroyed by P-60 Hacker with Shock Rifle Last Messages --------------- 03223_ Shotgun destroyed. 03224_ The unstable cave ceiling collapses. 03224_ Rocket Launcher destroyed. 03224_ Destroyed Rocket Launcher. 03224_ Imp. Aluminum Leg destroyed. 03224_ Destroyed Imp. Aluminum Leg. 03224_ G-47 Trooper destroyed. 03224_ S-10 Pest destroyed. 03226_ Core Shielding destroyed. 03230_ Aluminum Leg destroyed. 03230_ Acquired Hvy. Assault Rifle. 03231_ Critical hit (Destroy). 03231_ Titanium Leg destroyed. 03231_ Acquired 26 matter. 03233_ Critical hit (Burn: +37). 03233_ Hvy. Assault Rifle destroyed. 03236_ Acquired Lgt. Armor Plating. 03236_ Imp. Heat Sink destroyed. 03238_ Lgt. Armor Plating destroyed. 03241_ Imp. Ion Engine destroyed. Map ----- +----------------------------------------------------+ | ?????????????????????????????????????????????????? | | ?????????????????????????????????????????????????? | | ?????????????????????????????????????????????????? | | ?????????????????????????????????????????????????? | | ?????????????????????????????????????????????????? | | ?????????????????????????????????????????????????? | | ?????????????????????????????????????????????????? | | ?????????????????????????????????????????????????? | | ?????????????????????????????????????????????????? | | ?????????????????????????????????????????????????? | | ?????????????????????????????????????????????????? | | ????????????????????# ?????????????????????????? | | ????????????????????# ?????????????????????????? | | ????????????????????# ?????????????????????????? | | ????????????????????# #????????????????????????? | | ??????????????####??# #????????????????????????? | | ??????????? ?# ?# #????????????????????????? | | ??????????? ## ## #????????????????????????? | | ??????????? #????????????????????????? | | ??????????? ^ #????????????????????????? | | ????????????? #????????????????????????? | | ?????????# ???# ?# #????????????????????????? | | ?????????# ^ ## ## ###??????????????????????? | | ???????? #??????????????????????? | | ???????? ! #??????????????????????? | | ???????# Y g% ! @#??????????????????????? | | ???????? Y g! Y #?????????####?????????? | | ?????????# ## # pY #######?##### ####??????? | | ?????????# ## ##"#"###" # ######## | | ?????????# [%% | | ?????????# [ | | ?????????# ######## # ######### | | ?????????# ## # ##??????# # # #???????? | | ?????????# ???# # # #???????# ########???????? | | ??????????????####?#####???????# #??????????????? | | ???????????????????????????????# #??????????????? | | ???????????????????????????????# #??????????????? | | ???????????????????????????????# #??????????????? | | ???????????????????????????????# #??????????????? | | ???????????????????????????????# #??????????????? | | ???????????????????????????????# #??????????????? | | ??????????????????????????????## #??????????????? | | ??????????????????????????????#" #??????????????? | | ??????????????????????????????## #??????????????? | | ???????????????????????????????# #??????????????? | | ???????????????????????????????# #??????????????? | | ???????????????????????????????# #??????????????? | | ??????????????????????????###### #???????#####??? | | ??????????????????????????# ## #???????# #??? | | ????????????????????####### ## ######### #### | +----------------------------------------------------+ Best States ------------- Heat Dissipation 45 Energy Generation 14 Energy Capacity 265 Matter Stores 300 Matter Capacity 300 Sight Range 16 Robot Scan Range 14 Terrain Scan Range 16 Terrain Scan Density 10 Armor Coverage 150 Resistance: EM 15 Core Shielding 20 Evasion (%) 55 Melee Accuracy 5 Item Schematics ----------------- Prc. Beam Rifle | -8/Materials | Scanalyzed Robot Schematics ------------------ None Fabricated ------------ Nothing Alien Tech Used ----------------- None Achievements -------------- None Challenges ------------ None Game ------ Seed DirtyBiocellModule Manual? 0 Play Time 00:55:34 Cumulative 186.4 hours Start 2025.05.04 @ 09:42:53 End 2025.05.04 @ 10:40:52 Sessions 1 Manual Loads 0 Difficulty Rogue Special Mode None Game No. 86 Rogue 43 Adventurer 43 Explorer 0 Win Type - Total 5 Types 3/0/1/0/0/0/0/1/0 Lore% 62 Gallery% 69 Achievement% 60 Wizard Run 0 Options --------- Layout 0 ASCII 0 Keyboard 0 Movement Mouse Keybinds 0 Fullscreen 1 Font 24/Smallcaps Map View 76x50 Zoom Use 0% Tactical HUD 1 Map Filters NONE Filters NONE Steam 1 RUN: 4e2dddbe-ce5d-4b03-93ae-8e85e3128fee